[Event "Fagernes GM Swiss 2020"]
[Site "Fagernes"]
[Date "2020.10.09"]
[Round "7.5"]
[White "Unneland, Mathias"]
[Black "Starostits, Ilmars"]
[Result "1/2-1/2"]
[ECO "B33"]
[WhiteElo "2149"]
[BlackElo "2464"]
[Annotator "ChessBase"]
[PlyCount "112"]
[EventDate "2020.10.04"]
[EventType "swiss"]
[EventCountry "NOR"]
[SourceTitle "playchess.com"]
[Source "ChessBase"]
[SourceQuality "1"]
[TimeControl "40/6000+30:2400+30"]

1. e4 {[%emt 0:00:00]} c5 {[%emt 0:00:00]} 2. Nf3 {[%emt 0:00:00]} Nc6 {[%emt 0:00:00]} 3. d4 {[%emt 0:00:25]} cxd4 {[%emt 0:01:03]} 4. Nxd4 {[%emt 0:00:13]} Qb6 {[%emt 0:00:03]} 5. Nb3 {[%emt 0:00:52]} Nf6 {[%emt 0:00:05]} 6. Nc3 {[%emt 0:00:34]} e6 {[%emt 0:00:04]} 7. Be3 {[%emt 0:00:45]} Qc7 {[%emt 0:00:08]} 8. a3 {[%emt 0:00:48]} a6 {[%emt 0:00:52]} 9. f4 {[%emt 0:00:45]} d6 {[%emt 0:00:55]} 10. g4 {[%emt 0:00:35]} h6 {[%emt 0:04:07]} 11. Bg2 {[%emt 0:05:40]} Be7 {[%emt 0:00:15]} 12. h4 {[%emt 0:01:27]} h5 {[%emt 0:00:44]} 13. g5 {[%emt 0:01:34]} Ng4 {[%emt 0:00:05]} 14. Bg1 {[%emt 0:01:03]} b5 {[%emt 0:01:48]} 15. Bf3 {[%emt 0:03:33]} b4 {[%emt 0:00:06]} 16. axb4 {[%emt 0:10:03]} Nxb4 {[%emt 0:00:04]} 17. Rc1 {[%emt 0:05:20]} Rb8 {[%emt 0:01:19]} 18. Bxg4 {[%emt 0:23:57]} hxg4 {[%emt 0:00:19]} 19. Qxg4 {[%emt 0:00:07]} e5 {[%emt 0:03:16]} 20. f5 {[%emt 0:02:39]} d5 {[%emt 0:00:08]} 21. h5 {[%emt 0:05:42]} d4 {[%emt 0:00:24]} 22. Nxd4 {[%emt 0:03:41]} exd4 {[%emt 0:06:02]} 23. Bxd4 {[%emt 0:00:09]} Rg8 {[%emt 0:05:05]} 24. g6 {[%emt 0:04:32]} f6 {[%emt 0:10:08]} 25. h6 {[%emt 0:01:28]} gxh6 {[%emt 0:03:41]} 26. g7 {[%emt 0:03:13]} Qc4 {[%emt 0:00:45]} 27. Rxh6 {[%emt 0:02:00]} Qf7 {[%emt 0:53:30]} 28. Rh8 {[%emt 0:00:20]} Bb7 {[%emt 0:08:30]} 29. Rxg8+ {[%emt 0:03:27]} Qxg8 {[%emt 0:00:04]} 30. Qg6+ {[%emt 0:00:10]} Kd7 {[%emt 0:00:21]} 31. Bxf6 {[%emt 0:00:38]} Bxf6 {[%emt 0:01:02]} 32. Qxf6 {[%emt 0:00:35]} Re8 {[%emt 0:00:05]} 33. Qd4+ {[%emt 0:01:30]} Kc8 {[%emt 0:01:08]} 34. Qxb4 {[%emt 0:04:14]} Qxg7 {[%emt 0:01:21]} 35. Qc5+ {[%emt 0:01:04]} Kb8 {[%emt 0:00:14]} 36. Rd1 {[%emt 0:02:40]} Rh8 {[%emt 0:06:22]} 37. Qd6+ {[%emt 0:00:55]} Ka8 {[%emt 0:00:08]} 38. Kf2 {[%emt 0:05:46]} Qg5 {[%emt 0:02:05]} 39. Qg3 {[%emt 0:00:58]} Qe7 {[%emt 0:00:37]} 40. Rd6 {[%emt 0:02:24]} Rf8 {[%emt 0:01:07]} 41. Qf4 {[%emt 0:45:10]} Qh7 {[%emt 0:41:46]} 42. Nd5 {[%emt 0:01:04]} Qh1 {[%emt 0:00:00]} 43. Rh6 {[%emt 0:00:00]} Qd1 {[%emt 0:00:00]} 44. Nc7+ {[%emt 0:00:00]} Ka7 {[%emt 0:00:00]} 45. Qe3+ {[%emt 0:00:00]} Kb8 {[%emt 0:00:00]} 46. Nxa6+ {[%emt 0:00:00]} Ka8 {[%emt 0:00:00]} 47. Nb4 {[%emt 0:00:00]} Rg8 {[%emt 0:00:00]} 48. Qa3+ {[%emt 0:00:00]} Kb8 {[%emt 0:00:00]} 49. Na6+ {[%emt 0:00:00]} Ka8 {[%emt 0:00:00]} 50. Nb4+ {[%emt 0:00:00]} Kb8 {[%emt 0:00:00]} 51. Nc6+ {[%emt 0:00:00]} Bxc6 {[%emt 0:00:00]} 52. Qb3+ {[%emt 0:00:00]} Ka7 {[%emt 0:00:00]} 53. Rh7+ {[%emt 0:00:00]} Ka6 {[%emt 0:00:00]} 54. Qxg8 {[%emt 0:00:00]} Qd4+ {[%emt 0:00:00]} 55. Kf1 {[%emt 0:00:00]} Qd1+ {[%emt 0:00:00]} 56. Kf2 {[%emt 0:00:00]} Qd4+ {[%emt 0:00:00]} 1/2-1/2

[Event "Fagernes GM Swiss 2020"]
[Site "Fagernes"]
[Date "2020.10.09"]
[Round "7.6"]
[White "Ranaldi, Lucas"]
[Black "Hobber, Anders"]
[Result "1/2-1/2"]
[ECO "D15"]
[WhiteElo "2334"]
[BlackElo "2386"]
[Annotator "ChessBase"]
[PlyCount "27"]
[EventDate "2020.10.04"]
[EventType "swiss"]
[EventCountry "NOR"]
[SourceTitle "playchess.com"]
[Source "ChessBase"]
[SourceQuality "1"]
[TimeControl "40/6000+30:2400+30"]

1. c4 {[%emt 0:02:31]} c6 {[%emt 0:00:00]} 2. Nf3 {[%emt 0:00:08]} d5 {[%emt 0:00:00]} 3. e3 {[%emt 0:00:03]} Nf6 {[%emt 0:00:08]} 4. Nc3 {[%emt 0:00:06]} a6 {[%emt 0:02:48]} 5. d4 {[%emt 0:00:49]} b5 {[%emt 0:02:43]} 6. b3 {[%emt 0:00:23]} Bg4 {[%emt 0:00:47]} 7. a4 {[%emt 0:00:10]} b4 {[%emt 0:18:01]} 8. Nb1 {[%emt 0:00:24]} Nbd7 {[%emt 0:08:05]} 9. Bb2 {[%emt 0:00:21]} e6 {[%emt 0:01:59]} 10. Nbd2 {[%emt 0:01:54]} Bd6 {[%emt 0:13:59]} 11. Be2 {[%emt 0:01:12]} Qb8 {[%emt 0:06:13]} 12. h3 {[%emt 0:22:18]} Bf5 {[%emt 0:01:41]} 13. Nh4 {[%emt 0:01:38]} Be4 {[%emt 0:07:42]} 14. Nhf3 {[%emt 0:08:43]} 1/2-1/2

[Event "Fagernes GM Swiss 2020"]
[Site "Fagernes"]
[Date "2020.10.09"]
[Round "7.7"]
[White "Galinsky, Timofey"]
[Black "Agdestein, Simen"]
[Result "0-1"]
[ECO "D02"]
[WhiteElo "2370"]
[BlackElo "2552"]
[Annotator "ChessBase"]
[PlyCount "56"]
[EventDate "2020.10.04"]
[EventType "swiss"]
[EventCountry "NOR"]
[SourceTitle "playchess.com"]
[Source "ChessBase"]
[SourceQuality "1"]
[TimeControl "40/6000+30:2400+30"]

1. d4 {[%emt 0:00:00]} Nf6 {[%emt 0:00:07]} 2. Nf3 {[%emt 0:00:00]} e6 {[%emt 0:00:44]} 3. c3 {[%emt 0:01:43]} d5 {[%emt 0:01:06]} 4. Bf4 {[%emt 0:00:35]} Bd6 {[%emt 0:00:58]} 5. Bg3 {[%emt 0:00:27]} c5 {[%emt 0:00:29]} 6. e3 {[%emt 0:00:32]} Qc7 {[%emt 0:00:35]} 7. Nbd2 {[%emt 0:00:28]} Nbd7 {[%emt 0:00:52]} 8. Bd3 {[%emt 0:02:10]} O-O {[%emt 0:06:04]} 9. Bxd6 {[%emt 0:05:54]} Qxd6 {[%emt 0:01:05]} 10. O-O {[%emt 0:00:06]} e5 {[%emt 0:02:24]} 11. dxe5 {[%emt 0:01:42]} Nxe5 {[%emt 0:00:05]} 12. Nxe5 {[%emt 0:00:04]} Qxe5 {[%emt 0:00:05]} 13. Qa4 {[%emt 0:03:27]} Bd7 {[%emt 0:01:28]} 14. Qh4 {[%emt 0:01:19]} Rfe8 {[%emt 0:07:26]} 15. Rfe1 {[%emt 0:01:42]} Bc6 {[%emt 0:05:16]} 16. Rad1 {[%emt 0:03:08]} a5 {[%emt 0:02:28]} 17. f4 {[%emt 0:01:32]} Qc7 {[%emt 0:26:16]} 18. g4 {[%emt 0:07:28]} Ne4 {[%emt 0:06:23]} 19. Nf3 {[%emt 0:03:26]} f6 {[%emt 0:07:03]} 20. g5 {[%emt 0:02:06]} Qe7 {[%emt 0:01:17]} 21. Bxe4 {[%emt 0:06:09]} Qxe4 {[%emt 0:03:14]} 22. Nd2 {[%emt 0:00:27]} Qg6 {[%emt 0:02:10]} 23. Qg3 {[%emt 0:01:05]} fxg5 {[%emt 0:01:40]} 24. fxg5 {[%emt 0:00:06]} Qc2 {[%emt 0:01:53]} 25. e4 {[%emt 0:05:26]} dxe4 {[%emt 0:01:30]} 26. Nc4 {[%emt 0:01:11]} e3 {[%emt 0:01:25]} 27. g6 {[%emt 0:05:59]} Re4 {[%emt 0:08:02]} 28. gxh7+ {[%emt 0:01:18]} Kh8 {[%emt 0:00:56]} 0-1

[Event "Fagernes GM Swiss 2020"]
[Site "Fagernes"]
[Date "2020.10.09"]
[Round "7.8"]
[White "Miezis, Normunds"]
[Black "Dahl, Trygve"]
[Result "0-1"]
[ECO "A10"]
[WhiteElo "2485"]
[BlackElo "2211"]
[Annotator "ChessBase"]
[PlyCount "84"]
[EventDate "2020.10.04"]
[EventType "swiss"]
[EventCountry "NOR"]
[SourceTitle "playchess.com"]
[Source "ChessBase"]
[SourceQuality "1"]
[TimeControl "40/6000+30:2400+30"]

1. c4 {[%emt 0:00:00]} f5 {[%emt 0:00:00]} 2. g3 {[%emt 0:02:05]} Nf6 {[%emt 0:00:00]} 3. Bg2 {[%emt 0:00:20]} d6 {[%emt 0:00:23]} 4. Nc3 {[%emt 0:02:27]} e6 {[%emt 0:00:36]} 5. d3 {[%emt 0:06:57]} Be7 {[%emt 0:03:24]} 6. e4 {[%emt 0:00:58]} e5 {[%emt 0:09:57]} 7. exf5 {[%emt 0:04:55]} Bxf5 {[%emt 0:00:11]} 8. Bxb7 {[%emt 0:00:14]} Nbd7 {[%emt 0:00:02]} 9. Qf3 {[%emt 0:36:31]} Bg4 {[%emt 0:07:26]} 10. Qc6 {[%emt 0:00:11]} Rb8 {[%emt 0:07:25]} 11. Be3 {[%emt 0:01:49]} O-O {[%emt 0:01:09]} 12. h3 {[%emt 0:04:53]} Bf5 {[%emt 0:02:41]} 13. O-O-O {[%emt 0:01:06]} Nc5 {[%emt 0:10:46]} 14. Bxc5 {[%emt 0:01:51]} dxc5 {[%emt 0:00:14]} 15. Nf3 {[%emt 0:08:50]} Bd7 {[%emt 0:14:09]} 16. Qa6 {[%emt 0:00:11]} Bd6 {[%emt 0:00:03]} 17. Nb5 {[%emt 0:11:14]} Bxb5 {[%emt 0:10:59]} 18. cxb5 {[%emt 0:00:38]} Kh8 {[%emt 0:01:58]} 19. Rhe1 {[%emt 0:02:13]} Nd7 {[%emt 0:06:14]} 20. Be4 {[%emt 0:10:36]} Rb6 {[%emt 0:03:06]} 21. Qa4 {[%emt 0:02:30]} Nb8 {[%emt 0:05:56]} 22. Nd2 {[%emt 0:04:18]} a6 {[%emt 0:02:47]} 23. bxa6 {[%emt 0:00:10]} Rxa6 {[%emt 0:00:02]} 24. Qc4 {[%emt 0:00:14]} Ra7 {[%emt 0:01:25]} 25. Re2 {[%emt 0:00:49]} Nd7 {[%emt 0:03:15]} 26. Kb1 {[%emt 0:00:26]} Qe7 {[%emt 0:01:11]} 27. Qc2 {[%emt 0:01:11]} Rb8 {[%emt 0:02:39]} 28. Nc4 {[%emt 0:00:21]} Nf8 {[%emt 0:00:11]} 29. Bg2 {[%emt 0:02:33]} Ne6 {[%emt 0:02:01]} 30. Qd2 {[%emt 0:01:14]} Nd4 {[%emt 0:00:29]} 31. Re4 {[%emt 0:01:03]} Qd7 {[%emt 0:00:37]} 32. a3 {[%emt 0:00:36]} Qa4 {[%emt 0:00:43]} 33. Rde1 {[%emt 0:00:28]} Qb3 {[%emt 0:02:21]} 34. Qd1 {[%emt 0:01:04]} Qb5 {[%emt 0:02:31]} 35. f4 {[%emt 0:01:31]} Rxa3 {[%emt 0:00:40]} 36. Rxd4 {[%emt 0:00:22]} cxd4 {[%emt 0:00:42]} 37. fxe5 {[%emt 0:00:05]} Be7 {[%emt 0:03:12]} 38. Re2 {[%emt 0:00:08]} Ra4 {[%emt 0:00:32]} 39. Be4 {[%emt 0:00:58]} Qa6 {[%emt 0:00:26]} 40. Kc2 {[%emt 0:00:19]} Ra1 {[%emt 0:00:12]} 41. Qxa1 {[%emt 0:40:30]} Qxa1 {[%emt 0:40:07]} 42. Bc6 {[%emt 0:00:05]} Bg5 {[%emt 0:01:07]} 0-1

[Event "Fagernes GM Swiss 2020"]
[Site "Fagernes"]
[Date "2020.10.09"]
[Round "7.9"]
[White "Vitenberg, Noam Aviv"]
[Black "Haldorsen, Benjamin"]
[Result "1/2-1/2"]
[ECO "A75"]
[WhiteElo "2298"]
[BlackElo "2469"]
[Annotator "ChessBase"]
[PlyCount "99"]
[EventDate "2020.10.04"]
[EventType "swiss"]
[EventCountry "NOR"]
[SourceTitle "playchess.com"]
[Source "ChessBase"]
[SourceQuality "1"]
[TimeControl "40/6000+30:2400+30"]

1. d4 {[%emt 0:01:33]} Nf6 {[%emt 0:00:00]} 2. c4 {[%emt 0:00:24]} c5 {[%emt 0:00:21]} 3. d5 {[%emt 0:00:37]} e6 {[%emt 0:00:17]} 4. Nc3 {[%emt 0:01:28]} exd5 {[%emt 0:00:26]} 5. cxd5 {[%emt 0:00:08]} d6 {[%emt 0:00:05]} 6. e4 {[%emt 0:00:26]} g6 {[%emt 0:00:22]} 7. Nf3 {[%emt 0:01:28]} a6 {[%emt 0:01:04]} 8. a4 {[%emt 0:00:05]} Bg4 {[%emt 0:00:00]} 9. Be2 {[%emt 0:00:14]} Bxf3 {[%emt 0:00:08]} 10. Bxf3 {[%emt 0:00:20]} Bg7 {[%emt 0:01:34]} 11. Bf4 {[%emt 0:00:33]} O-O {[%emt 0:00:10]} 12. O-O {[%emt 0:00:08]} Ne8 {[%emt 0:00:17]} 13. a5 {[%emt 0:04:57]} Nd7 {[%emt 0:00:28]} 14. Qd2 {[%emt 0:00:45]} Rb8 {[%emt 0:05:34]} 15. Be2 {[%emt 0:02:44]} Qe7 {[%emt 0:02:10]} 16. Rfe1 {[%emt 0:01:13]} Kh8 {[%emt 0:08:43]} 17. Bg3 {[%emt 0:07:50]} g5 {[%emt 0:01:47]} 18. Nd1 {[%emt 0:08:43]} Be5 {[%emt 0:11:31]} 19. Ra4 {[%emt 0:09:21]} Ng7 {[%emt 0:01:32]} 20. Ne3 {[%emt 0:03:44]} Rbe8 {[%emt 0:04:18]} 21. Bg4 {[%emt 0:14:45]} Bxg3 {[%emt 0:09:59]} 22. hxg3 {[%emt 0:00:23]} Ne5 {[%emt 0:04:51]} 23. Bf5 {[%emt 0:10:23]} f6 {[%emt 0:06:59]} 24. b4 {[%emt 0:04:45]} c4 {[%emt 0:07:24]} 25. Rc1 {[%emt 0:02:57]} Nxf5 {[%emt 0:02:13]} 26. Nxf5 {[%emt 0:04:18]} Qd7 {[%emt 0:00:16]} 27. Ra3 {[%emt 0:00:44]} Rc8 {[%emt 0:02:03]} 28. Qd4 {[%emt 0:09:06]} g4 {[%emt 0:01:10]} 29. Rac3 {[%emt 0:01:30]} Rg8 {[%emt 0:09:21]} 30. f4 {[%emt 0:03:50]} gxf3 {[%emt 0:06:08]} 31. gxf3 {[%emt 0:00:20]} Qf7 {[%emt 0:00:25]} 32. f4 {[%emt 0:02:11]} Ng4 {[%emt 0:04:29]} 33. Kg2 {[%emt 0:03:46]} Qd7 {[%emt 0:00:30]} 34. Ne3 {[%emt 0:05:51]} Nxe3+ {[%emt 0:06:13]} 35. Rxe3 {[%emt 0:00:10]} Qe7 {[%emt 0:00:32]} 36. Rxc4 {[%emt 0:00:32]} Rxc4 {[%emt 0:00:01]} 37. Qxc4 {[%emt 0:00:05]} Re8 {[%emt 0:00:30]} 38. Kf3 {[%emt 0:01:19]} Qf7 {[%emt 0:00:25]} 39. Kg2 {[%emt 0:01:24]} Qe7 {[%emt 0:00:28]} 40. Re2 {[%emt 0:01:13]} Qf7 {[%emt 0:00:14]} 41. Rc2 {[%emt 0:41:32]} Qg6 {[%emt 0:41:01]} 42. Re2 {[%emt 0:00:00]} Qg4 {[%emt 0:00:00]} 43. Qd3 {[%emt 0:00:00]} Qg6 {[%emt 0:00:00]} 44. Qd4 {[%emt 0:00:00]} Kg8 {[%emt 0:00:00]} 45. Qe3 {[%emt 0:00:00]} Qf7 {[%emt 0:00:00]} 46. Qf3 {[%emt 0:00:00]} Qg6 {[%emt 0:00:00]} 47. Qe3 {[%emt 0:00:00]} Qf7 {[%emt 0:00:00]} 48. Qb6 {[%emt 0:00:00]} Qd7 {[%emt 0:00:00]} 49. Qd4 {[%emt 0:00:00]} Qe7 {[%emt 0:00:00]} 50. Qe3 {[%emt 0:00:00]} 1/2-1/2

[Event "Fagernes GM Swiss 2020"]
[Site "Fagernes"]
[Date "2020.10.09"]
[Round "7.10"]
[White "Vestby-Ellingsen, Mads"]
[Black "Abdrlauf, Elham"]
[Result "0-1"]
[ECO "D24"]
[WhiteElo "2362"]
[BlackElo "2362"]
[Annotator "ChessBase"]
[PlyCount "76"]
[EventDate "2020.10.04"]
[EventType "swiss"]
[EventCountry "NOR"]
[SourceTitle "playchess.com"]
[Source "ChessBase"]
[SourceQuality "1"]
[TimeControl "40/6000+30:2400+30"]

1. d4 {[%emt 0:00:00]} d5 {[%emt 0:00:00]} 2. c4 {[%emt 0:00:00]} e6 {[%emt 0:00:00]} 3. Nf3 {[%emt 0:00:02]} Nf6 {[%emt 0:00:00]} 4. Nc3 {[%emt 0:00:13]} dxc4 {[%emt 0:00:00]} 5. e4 {[%emt 0:00:52]} b5 {[%emt 0:00:00]} 6. e5 {[%emt 0:00:18]} Nd5 {[%emt 0:00:18]} 7. Nxb5 {[%emt 0:00:13]} Nb6 {[%emt 0:00:02]} 8. Be2 {[%emt 0:00:22]} Be7 {[%emt 0:00:06]} 9. O-O {[%emt 0:00:14]} O-O {[%emt 0:00:12]} 10. Qd2 {[%emt 0:00:15]} Nc6 {[%emt 0:00:04]} 11. Qf4 {[%emt 0:00:28]} Nb4 {[%emt 0:00:03]} 12. Qg3 {[%emt 0:15:19]} Kh8 {[%emt 0:13:27]} 13. Rd1 {[%emt 0:05:55]} Rb8 {[%emt 0:06:13]} 14. Nc3 {[%emt 0:02:45]} Bb7 {[%emt 0:01:24]} 15. Bg5 {[%emt 0:25:55]} f5 {[%emt 0:07:56]} 16. exf6 {[%emt 0:03:02]} gxf6 {[%emt 0:00:38]} 17. Bh6 {[%emt 0:02:38]} Rg8 {[%emt 0:00:24]} 18. Qh3 {[%emt 0:00:24]} Qd7 {[%emt 0:07:39]} 19. Rac1 {[%emt 0:07:54]} N4d5 {[%emt 0:03:43]} 20. b3 {[%emt 0:12:21]} cxb3 {[%emt 0:07:39]} 21. axb3 {[%emt 0:01:19]} Nxc3 {[%emt 0:00:14]} 22. Rxc3 {[%emt 0:00:11]} Nd5 {[%emt 0:00:05]} 23. Rcc1 {[%emt 0:02:05]} Bd6 {[%emt 0:02:07]} 24. Qh4 {[%emt 0:01:33]} Qf7 {[%emt 0:05:06]} 25. Ne1 {[%emt 0:06:56]} Qg6 {[%emt 0:16:55]} 26. g3 {[%emt 0:08:15]} Ne7 {[%emt 0:00:58]} 27. Qh5 {[%emt 0:01:07]} Qxh5 {[%emt 0:03:06]} 28. Bxh5 {[%emt 0:00:07]} Nf5 {[%emt 0:00:06]} 29. Be3 {[%emt 0:03:23]} Bd5 {[%emt 0:01:29]} 30. b4 {[%emt 0:00:28]} Rxb4 {[%emt 0:05:45]} 31. Ra1 {[%emt 0:03:13]} Nxe3 {[%emt 0:01:55]} 32. fxe3 {[%emt 0:00:10]} Rb2 {[%emt 0:01:00]} 33. Nd3 {[%emt 0:01:15]} Rg2+ {[%emt 0:00:11]} 34. Kf1 {[%emt 0:00:08]} Rxh2 {[%emt 0:00:05]} 35. g4 {[%emt 0:01:10]} Bf3 {[%emt 0:00:14]} 36. Nf2 {[%emt 0:00:21]} Bg3 {[%emt 0:00:51]} 37. Rd2 {[%emt 0:00:41]} Bxf2 {[%emt 0:00:08]} 38. Raa2 {[%emt 0:00:07]} Rxh5 {[%emt 0:00:04]} 0-1

[Event "Fagernes GM Swiss 2020"]
[Site "Fagernes"]
[Date "2020.10.09"]
[Round "7.11"]
[White "Skotheim, Andreas"]
[Black "Carlsson, Ludvig"]
[Result "0-1"]
[ECO "C77"]
[WhiteElo "2120"]
[BlackElo "2281"]
[Annotator "ChessBase"]
[PlyCount "152"]
[EventDate "2020.10.04"]
[EventType "swiss"]
[EventCountry "NOR"]
[SourceTitle "playchess.com"]
[Source "ChessBase"]
[SourceQuality "1"]
[TimeControl "40/6000+30:2400+30"]

1. e4 {[%emt 0:00:00]} e5 {[%emt 0:00:07]} 2. Nf3 {[%emt 0:00:07]} Nc6 {[%emt 0:00:07]} 3. Bb5 {[%emt 0:00:20]} a6 {[%emt 0:00:08]} 4. Ba4 {[%emt 0:00:07]} Nf6 {[%emt 0:00:07]} 5. O-O {[%emt 0:00:13]} Be7 {[%emt 0:00:06]} 6. d3 {[%emt 0:00:22]} b5 {[%emt 0:01:58]} 7. Bb3 {[%emt 0:00:09]} d6 {[%emt 0:00:34]} 8. a3 {[%emt 0:00:30]} O-O {[%emt 0:05:01]} 9. Nc3 {[%emt 0:00:33]} Na5 {[%emt 0:00:27]} 10. Ba2 {[%emt 0:00:28]} Be6 {[%emt 0:00:08]} 11. b4 {[%emt 0:01:12]} Bxa2 {[%emt 0:00:11]} 12. Rxa2 {[%emt 0:00:18]} Nc6 {[%emt 0:00:07]} 13. Bg5 {[%emt 0:01:08]} Ng4 {[%emt 0:17:42]} 14. Bd2 {[%emt 0:00:18]} Nf6 {[%emt 0:00:16]} 15. Bg5 {[%emt 0:00:49]} Ng4 {[%emt 0:04:08]} 16. Bd2 {[%emt 0:00:12]} Qd7 {[%emt 0:04:59]} 17. Nd5 {[%emt 0:19:20]} f5 {[%emt 0:05:40]} 18. exf5 {[%emt 0:02:21]} Rxf5 {[%emt 0:00:13]} 19. h3 {[%emt 0:02:33]} Nh6 {[%emt 0:01:02]} 20. Bxh6 {[%emt 0:02:06]} gxh6 {[%emt 0:00:08]} 21. Nd2 {[%emt 0:18:05]} Kh8 {[%emt 0:04:00]} 22. a4 {[%emt 0:20:42]} Rg8 {[%emt 0:01:17]} 23. axb5 {[%emt 0:01:45]} Rfg5 {[%emt 0:02:10]} 24. Ne3 {[%emt 0:06:45]} Nxb4 {[%emt 0:02:41]} 25. Rxa6 {[%emt 0:05:32]} Nxa6 {[%emt 0:00:39]} 26. bxa6 {[%emt 0:00:07]} Qc6 {[%emt 0:00:07]} 27. Ne4 {[%emt 0:01:17]} R5g6 {[%emt 0:00:09]} 28. Qa1 {[%emt 0:04:46]} Ra8 {[%emt 0:07:16]} 29. Nf5 {[%emt 0:03:13]} Bd8 {[%emt 0:00:56]} 30. a7 {[%emt 0:01:22]} Qb7 {[%emt 0:00:11]} 31. Rb1 {[%emt 0:02:27]} Rxa7 {[%emt 0:00:11]} 32. Rxb7 {[%emt 0:00:22]} Rxa1+ {[%emt 0:00:07]} 33. Kh2 {[%emt 0:00:05]} Ra8 {[%emt 0:00:16]} 34. c4 {[%emt 0:00:56]} Kg8 {[%emt 0:02:17]} 35. h4 {[%emt 0:03:55]} Kf8 {[%emt 0:00:14]} 36. h5 {[%emt 0:00:38]} Re6 {[%emt 0:00:06]} 37. f3 {[%emt 0:04:43]} Ra3 {[%emt 0:00:50]} 38. Rb8 {[%emt 0:02:11]} Re8 {[%emt 0:00:09]} 39. d4 {[%emt 0:00:34]} exd4 {[%emt 0:02:10]} 40. Nxd4 {[%emt 0:00:38]} Ra4 {[%emt 0:00:12]} 41. Nf5 {[%emt 0:46:34]} Rxc4 {[%emt 0:45:20]} 42. Nexd6 {[%emt 0:00:00]} cxd6 {[%emt 0:00:00]} 43. Nxd6 {[%emt 0:00:00]} Rc5 {[%emt 0:00:00]} 44. Nxe8 {[%emt 0:00:00]} Rxh5+ {[%emt 0:00:00]} 45. Kg3 {[%emt 0:00:00]} Kxe8 {[%emt 0:00:00]} 46. Ra8 {[%emt 0:00:00]} Rg5+ {[%emt 0:00:00]} 47. Kh3 {[%emt 0:00:00]} Rg6 {[%emt 0:00:00]} 48. f4 {[%emt 0:00:00]} Rd6 {[%emt 0:00:00]} 49. Ra3 {[%emt 0:00:00]} Kf7 {[%emt 0:00:00]} 50. Rc3 {[%emt 0:00:00]} Kg6 {[%emt 0:00:00]} 51. Rg3+ {[%emt 0:00:00]} Kf5 {[%emt 0:00:00]} 52. Rg7 {[%emt 0:00:00]} Kxf4 {[%emt 0:00:00]} 53. g3+ {[%emt 0:00:00]} Kf3 {[%emt 0:00:00]} 54. Rf7+ {[%emt 0:00:00]} Ke4 {[%emt 0:00:00]} 55. Rxh7 {[%emt 0:00:00]} Rg6 {[%emt 0:00:00]} 56. Ra7 {[%emt 0:00:00]} Bg5 {[%emt 0:00:00]} 57. Kg2 {[%emt 0:00:00]} Rb6 {[%emt 0:00:00]} 58. Ra4+ {[%emt 0:00:00]} Kf5 {[%emt 0:00:00]} 59. Ra5+ {[%emt 0:00:00]} Kg4 {[%emt 0:00:00]} 60. Ra4+ {[%emt 0:00:00]} Kh5 {[%emt 0:00:00]} 61. Ra3 {[%emt 0:00:00]} Rb4 {[%emt 0:00:00]} 62. Kf3 {[%emt 0:00:00]} Rd4 {[%emt 0:00:00]} 63. Rb3 {[%emt 0:00:00]} Rd1 {[%emt 0:00:00]} 64. Ra3 {[%emt 0:00:00]} Rd2 {[%emt 0:00:00]} 65. Rb3 {[%emt 0:00:00]} Ra2 {[%emt 0:00:00]} 66. Rd3 {[%emt 0:00:00]} Ra5 {[%emt 0:00:00]} 67. Rb3 {[%emt 0:00:00]} Kg6 {[%emt 0:00:00]} 68. Rd3 {[%emt 0:00:00]} Kf5 {[%emt 0:00:00]} 69. Rb3 {[%emt 0:00:29]} Bf6 {[%emt 0:00:00]} 70. Kg2 {[%emt 0:02:49]} Be5 {[%emt 0:00:00]} 71. Kf3 {[%emt 0:01:25]} Ra4 {[%emt 0:00:00]} 72. Rd3 {[%emt 0:02:11]} h5 {[%emt 0:03:33]} 73. Rb3 {[%emt 0:00:27]} Ra2 {[%emt 0:00:10]} 74. Rd3 {[%emt 0:00:42]} Rc2 {[%emt 0:00:05]} 75. Re3 {[%emt 0:04:25]} Bd4 {[%emt 0:00:17]} 76. Re2 {[%emt 0:00:13]} Rxe2 {[%emt 0:00:12]} 0-1

[Event "Fagernes GM Swiss 2020"]
[Site "Fagernes"]
[Date "2020.10.09"]
[Round "7.12"]
[White "Oye-Stromberg, Alexander"]
[Black "Dolzhikova, Olga"]
[Result "1-0"]
[ECO "B26"]
[WhiteElo "2048"]
[BlackElo "2208"]
[Annotator "ChessBase"]
[PlyCount "67"]
[EventDate "2020.10.04"]
[EventType "swiss"]
[EventCountry "NOR"]
[SourceTitle "playchess.com"]
[Source "ChessBase"]
[SourceQuality "1"]
[TimeControl "40/6000+30:2400+30"]

1. e4 {[%emt 0:00:00]} g6 {[%emt 0:08:24]} 2. Nc3 {[%emt 0:02:45]} Bg7 {[%emt 0:00:06]} 3. g3 {[%emt 0:00:10]} c5 {[%emt 0:04:10]} 4. Bg2 {[%emt 0:00:08]} Nc6 {[%emt 0:00:57]} 5. d3 {[%emt 0:00:12]} d6 {[%emt 0:00:42]} 6. Be3 {[%emt 0:00:12]} a6 {[%emt 0:01:48]} 7. Qd2 {[%emt 0:03:48]} b5 {[%emt 0:01:06]} 8. f4 {[%emt 0:01:40]} b4 {[%emt 0:05:42]} 9. Nd1 {[%emt 0:00:31]} Bb7 {[%emt 0:00:29]} 10. Ne2 {[%emt 0:01:03]} Nf6 {[%emt 0:07:26]} 11. h3 {[%emt 0:00:16]} Nd7 {[%emt 0:05:02]} 12. O-O {[%emt 0:12:38]} Qc7 {[%emt 0:09:57]} 13. g4 {[%emt 0:07:19]} h5 {[%emt 0:01:36]} 14. g5 {[%emt 0:00:27]} Nd4 {[%emt 0:09:24]} 15. Bxd4 {[%emt 0:09:35]} cxd4 {[%emt 0:02:01]} 16. Qxb4 {[%emt 0:00:46]} a5 {[%emt 0:05:12]} 17. Qd2 {[%emt 0:01:15]} a4 {[%emt 0:00:41]} 18. c4 {[%emt 0:15:12]} dxc3 {[%emt 0:00:34]} 19. Ndxc3 {[%emt 0:00:41]} O-O {[%emt 0:22:12]} 20. f5 {[%emt 0:07:42]} a3 {[%emt 0:01:17]} 21. b3 {[%emt 0:02:40]} gxf5 {[%emt 0:05:42]} 22. Rxf5 {[%emt 0:02:01]} Ne5 {[%emt 0:00:25]} 23. d4 {[%emt 0:03:36]} Ng6 {[%emt 0:00:15]} 24. Rc1 {[%emt 0:13:15]} Qd7 {[%emt 0:03:35]} 25. Ng3 {[%emt 0:03:24]} Nh4 {[%emt 0:03:29]} 26. Rf2 {[%emt 0:00:17]} Nxg2 {[%emt 0:00:16]} 27. Kxg2 {[%emt 0:00:07]} h4 {[%emt 0:07:09]} 28. Nf5 {[%emt 0:00:05]} Rac8 {[%emt 0:01:12]} 29. Qf4 {[%emt 0:02:38]} e5 {[%emt 0:00:39]} 30. Qxh4 {[%emt 0:00:44]} exd4 {[%emt 0:00:31]} 31. g6 {[%emt 0:00:32]} fxg6 {[%emt 0:02:24]} 32. Ne7+ {[%emt 0:00:06]} Qxe7 {[%emt 0:00:04]} 33. Qxe7 {[%emt 0:00:05]} Rxc3 {[%emt 0:00:56]} 34. Rxc3 {[%emt 0:00:20]} 1-0